[Event "Titled Tuesday Blitz July 26 Early 2022"]
[White "Coto Mederos, Michel"]
[Black "Fiol, Fabrice"]
[WhiteFideId "3508528"]
[BlackFideId "611670"]
[WhiteElo "2427"]
[BlackElo "2369"]
[Result "1-0"]
[Round "07"]
[TimeControl "180+1"]
[Date "2022.07.27"]
[WhiteClock "0:00:06"]
[BlackClock "0:00:02"]

1. c4 {[%clk 0:03:00]}  e5 {[%clk 0:02:58]} 2. Nc3 {[%clk 0:03:01]}  Nc6 {[%clk 0:02:57]} 3. g3 {[%clk 0:03:00]}  g6 {[%clk 0:02:58]} 4. Bg2 {[%clk 0:02:59]}  Bg7 {[%clk 0:02:59]} 5. e3 {[%clk 0:02:59]}  d6 {[%clk 0:02:59]} 6. Nge2 {[%clk 0:02:59]}  f5 {[%clk 0:03:00]} 7. d4 {[%clk 0:02:57]}  Nf6 {[%clk 0:03:00]} 8. dxe5 {[%clk 0:02:56]}  Nxe5 {[%clk 0:02:56]} 9. O-O {[%clk 0:02:54]}  O-O {[%clk 0:02:56]} 10. b3 {[%clk 0:02:43]}  c6 {[%clk 0:02:53]} 11. Ba3 {[%clk 0:02:40]}  Ne8 {[%clk 0:02:51]} 12. Qc2 {[%clk 0:02:36]}  Be6 {[%clk 0:02:47]} 13. Rad1 {[%clk 0:02:35]}  Qc7 {[%clk 0:02:46]} 14. Nf4 {[%clk 0:02:18]}  Bf7 {[%clk 0:02:45]} 15. h4 {[%clk 0:02:10]}  a5 {[%clk 0:02:36]} 16. Rd2 {[%clk 0:02:08]}  Rd8 {[%clk 0:02:34]} 17. Rfd1 {[%clk 0:02:07]}  Kh8 {[%clk 0:02:29]} 18. Nce2 {[%clk 0:02:03]}  Bg8 {[%clk 0:02:17]} 19. Nd4 {[%clk 0:02:02]}  Qe7 {[%clk 0:02:11]} 20. Bb2 {[%clk 0:01:52]}  Nf6 {[%clk 0:02:03]} 21. Ba3 {[%clk 0:01:49]}  Neg4 {[%clk 0:01:50]} 22. Nf3 {[%clk 0:01:38]}  Ne4 {[%clk 0:01:45]} 23. Re2 {[%clk 0:01:24]}  Nexf2 {[%clk 0:01:38]} 24. Rxf2 {[%clk 0:01:21]}  Qxe3 {[%clk 0:01:38]} 25. Bc1 {[%clk 0:01:19]}  Qc5 {[%clk 0:01:28]} 26. Nd3 {[%clk 0:01:17]}  Qa7 {[%clk 0:01:24]} 27. Kf1 {[%clk 0:01:12]}  Nxf2 {[%clk 0:01:15]} 28. Qxf2 {[%clk 0:01:12]}  Qa6 {[%clk 0:01:09]} 29. Bb2 {[%clk 0:01:09]}  a4 {[%clk 0:01:01]} 30. Bxg7+ {[%clk 0:01:09]}  Kxg7 {[%clk 0:01:02]} 31. Qd4+ {[%clk 0:01:09]}  Rf6 {[%clk 0:00:59]} 32. Nc5 {[%clk 0:00:48]}  Qa8 {[%clk 0:00:35]} 33. Ng5 {[%clk 0:00:47]}  Re8 {[%clk 0:00:31]} 34. Nd7 {[%clk 0:00:43]}  Rf8 {[%clk 0:00:25]} 35. Nxf6 {[%clk 0:00:42]}  Rxf6 {[%clk 0:00:26]} 36. Re1 {[%clk 0:00:39]}  Qd8 {[%clk 0:00:22]} 37. b4 {[%clk 0:00:23]}  b5 {[%clk 0:00:18]} 38. cxb5 {[%clk 0:00:20]}  cxb5 {[%clk 0:00:18]} 39. Bd5 {[%clk 0:00:20]}  Bxd5 {[%clk 0:00:14]} 40. Qxd5 {[%clk 0:00:21]}  Qc8 {[%clk 0:00:05]} 41. Re7+ {[%clk 0:00:16]}  Kf8 {[%clk 0:00:06]} 42. Rf7+ {[%clk 0:00:16]}  Ke8 {[%clk 0:00:05]} 43. Rxf6 {[%clk 0:00:14]}  Qc1+ {[%clk 0:00:06]} 44. Ke2 {[%clk 0:00:09]}  Qc2+ {[%clk 0:00:05]} 45. Qd2 {[%clk 0:00:06]}  Qc4+ {[%clk 0:00:05]} 46. Kf2 {[%clk 0:00:06]}  h6 {[%clk 0:00:03]} 47. Qe3+ {[%clk 0:00:06]}  Kd8 {[%clk 0:00:02]} 48. Nf7+ {[%clk 0:00:05]}  Kc7 {[%clk 0:00:02]} 49. Qe7+ {[%clk 0:00:05]}  Kb8 {[%clk 0:00:02]} 50. Qxd6+ {[%clk 0:00:05]}  Kb7 {[%clk 0:00:03]} 51. Qd7+ {[%clk 0:00:05]}  Kb8 {[%clk 0:00:02]} 52. Rb6+ {[%clk 0:00:05]}  Ka8 {[%clk 0:00:02]} 53. Qb7# {[%clk 0:00:06]} 1-0


[Site "https://www.chess.com"]

[Event "Titled Tuesday Blitz July 26 Early 2022"]
[White "D`Arruda, Ricardo D."]
[Black "Jaskolka, Tomasz"]
[WhiteFideId "100692"]
[BlackFideId "1170791"]
[WhiteElo "2460"]
[BlackElo "2073"]
[Result "0-1"]
[Round "07"]
[TimeControl "180+1"]
[Date "2022.07.27"]
[WhiteClock "0:00:01"]
[BlackClock "0:00:11"]

1. Nf3 {[%clk 0:02:55]}  d5 {[%clk 0:02:59]} 2. d3 {[%clk 0:02:54]}  Nd7 {[%clk 0:02:56]} 3. g3 {[%clk 0:02:55]}  e5 {[%clk 0:02:55]} 4. Bg2 {[%clk 0:02:54]}  Bd6 {[%clk 0:02:56]} 5. e4 {[%clk 0:02:51]}  c6 {[%clk 0:02:56]} 6. Nc3 {[%clk 0:02:50]}  Ngf6 {[%clk 0:02:56]} 7. O-O {[%clk 0:02:45]}  O-O {[%clk 0:02:56]} 8. Nh4 {[%clk 0:02:37]}  Re8 {[%clk 0:02:55]} 9. exd5 {[%clk 0:02:36]}  cxd5 {[%clk 0:02:50]} 10. Nxd5 {[%clk 0:02:37]}  Nxd5 {[%clk 0:02:50]} 11. Bxd5 {[%clk 0:02:38]}  Nf6 {[%clk 0:02:50]} 12. Bg2 {[%clk 0:02:37]}  Bg4 {[%clk 0:02:47]} 13. Bf3 {[%clk 0:02:32]}  Bh3 {[%clk 0:02:47]} 14. Re1 {[%clk 0:02:31]}  Qd7 {[%clk 0:02:46]} 15. Bg5 {[%clk 0:02:25]}  Bc5 {[%clk 0:02:36]} 16. Bxf6 {[%clk 0:02:18]}  gxf6 {[%clk 0:02:36]} 17. Bg2 {[%clk 0:02:11]}  Bg4 {[%clk 0:02:35]} 18. Qd2 {[%clk 0:02:10]}  Rac8 {[%clk 0:02:27]} 19. Bf3 {[%clk 0:01:47]}  Bh3 {[%clk 0:02:25]} 20. c3 {[%clk 0:01:38]}  Red8 {[%clk 0:02:22]} 21. Qh6 {[%clk 0:01:32]}  Qxd3 {[%clk 0:01:55]} 22. Be4 {[%clk 0:01:29]}  Qd2 {[%clk 0:01:55]} 23. Qxh7+ {[%clk 0:01:14]}  Kf8 {[%clk 0:01:55]} 24. Ng2 {[%clk 0:00:49]}  Qxf2+ {[%clk 0:01:49]} 25. Kh1 {[%clk 0:00:49]}  Bxg2+ {[%clk 0:01:10]} 26. Bxg2 {[%clk 0:00:50]}  Rd2 {[%clk 0:01:06]} 27. Qh3 {[%clk 0:00:47]}  Rcd8 {[%clk 0:01:06]} 28. Rf1 {[%clk 0:00:47]}  Qe2 {[%clk 0:01:05]} 29. Qh8+ {[%clk 0:00:46]}  Ke7 {[%clk 0:01:05]} 30. Qxf6+ {[%clk 0:00:47]}  Kd7 {[%clk 0:01:05]} 31. Qxf7+ {[%clk 0:00:32]}  Be7 {[%clk 0:01:02]} 32. Bh3+ {[%clk 0:00:30]}  Kc6 {[%clk 0:00:57]} 33. Qf3+ {[%clk 0:00:12]}  Qxf3+ {[%clk 0:00:49]} 34. Rxf3 {[%clk 0:00:12]}  Rxb2 {[%clk 0:00:49]} 35. Bf5 {[%clk 0:00:12]}  Rdd2 {[%clk 0:00:49]} 36. Be4+ {[%clk 0:00:12]}  Kc5 {[%clk 0:00:46]} 37. Rf7 {[%clk 0:00:11]}  Rxh2+ {[%clk 0:00:46]} 38. Kg1 {[%clk 0:00:11]}  Bg5 {[%clk 0:00:46]} 39. Re1 {[%clk 0:00:10]}  Rhd2 {[%clk 0:00:31]} 40. Rf5 {[%clk 0:00:09]}  Bd8 {[%clk 0:00:19]} 41. Rxe5+ {[%clk 0:00:10]}  Kb6 {[%clk 0:00:20]} 42. Rd5 {[%clk 0:00:09]}  Ka6 {[%clk 0:00:15]} 43. Rxd2 {[%clk 0:00:07]}  Rxd2 {[%clk 0:00:16]} 44. Bf3 {[%clk 0:00:06]}  Bb6+ {[%clk 0:00:17]} 45. Kh1 {[%clk 0:00:06]}  Ka5 {[%clk 0:00:17]} 46. Re2 {[%clk 0:00:05]}  Rd3 {[%clk 0:00:17]} 47. Kg2 {[%clk 0:00:05]}  Rxc3 {[%clk 0:00:17]} 48. Bxb7 {[%clk 0:00:05]}  Bc7 {[%clk 0:00:17]} 49. Bf3 {[%clk 0:00:06]}  Kb4 {[%clk 0:00:16]} 50. Rb2+ {[%clk 0:00:06]}  Kc5 {[%clk 0:00:16]} 51. Rb3 {[%clk 0:00:05]}  Rc2+ {[%clk 0:00:16]} 52. Kh3 {[%clk 0:00:06]}  Rxa2 {[%clk 0:00:16]} 53. Rc3+ {[%clk 0:00:06]}  Kd6 {[%clk 0:00:17]} 54. Rc6+ {[%clk 0:00:06]}  Kd7 {[%clk 0:00:17]} 55. Rh6 {[%clk 0:00:05]}  Ra3 {[%clk 0:00:17]} 56. Rf6 {[%clk 0:00:05]}  Be5 {[%clk 0:00:17]} 57. Bg4+ {[%clk 0:00:05]}  Kc7 {[%clk 0:00:15]} 58. Rf7+ {[%clk 0:00:04]}  Kd6 {[%clk 0:00:15]} 59. Bf3 {[%clk 0:00:05]}  a5 {[%clk 0:00:14]} 60. Kg4 {[%clk 0:00:04]}  a4 {[%clk 0:00:15]} 61. Ra7 {[%clk 0:00:04]}  Ra1 {[%clk 0:00:14]} 62. Ra6+ {[%clk 0:00:04]}  Kc5 {[%clk 0:00:14]} 63. Ra5+ {[%clk 0:00:04]}  Kd4 {[%clk 0:00:14]} 64. Kf5 {[%clk 0:00:04]}  Bxg3 {[%clk 0:00:14]} 65. Bc6 {[%clk 0:00:02]}  a3 {[%clk 0:00:13]} 66. Rd5+ {[%clk 0:00:02]}  Kc4 {[%clk 0:00:14]} 67. Rb5 {[%clk 0:00:01]}  Be1 {[%clk 0:00:11]} 0-1


[Site "https://www.chess.com"]

[Event "Titled Tuesday Blitz July 26 Early 2022"]
[White "Gatterer, Florian"]
[Black "Dahlgren, James Allen"]
[WhiteFideId "811688"]
[BlackFideId "22256873"]
[WhiteElo "2218"]
[BlackElo "2065"]
[Result "1-0"]
[Round "07"]
[TimeControl "180+1"]
[Date "2022.07.27"]
[WhiteClock "0:00:04"]
[BlackClock "0:00:01"]

1. Nf3 {[%clk 0:03:00]}  e6 {[%clk 0:03:00]} 2. g3 {[%clk 0:02:55]}  c5 {[%clk 0:03:01]} 3. c4 {[%clk 0:02:51]}  d5 {[%clk 0:03:02]} 4. cxd5 {[%clk 0:02:51]}  exd5 {[%clk 0:03:02]} 5. d4 {[%clk 0:02:51]}  Nf6 {[%clk 0:03:03]} 6. Bg2 {[%clk 0:02:51]}  Nc6 {[%clk 0:03:03]} 7. O-O {[%clk 0:02:50]}  Be7 {[%clk 0:03:03]} 8. Nc3 {[%clk 0:02:49]}  O-O {[%clk 0:03:03]} 9. dxc5 {[%clk 0:02:42]}  h6 {[%clk 0:03:00]} 10. Na4 {[%clk 0:02:40]}  Ne4 {[%clk 0:02:57]} 11. Be3 {[%clk 0:02:37]}  Bg4 {[%clk 0:02:51]} 12. Rc1 {[%clk 0:02:36]}  Qd7 {[%clk 0:02:47]} 13. a3 {[%clk 0:02:27]}  a5 {[%clk 0:02:44]} 14. Nb6 {[%clk 0:02:18]}  Qf5 {[%clk 0:02:44]} 15. Nxa8 {[%clk 0:02:17]}  Rxa8 {[%clk 0:02:45]} 16. Nh4 {[%clk 0:02:11]}  Qe6 {[%clk 0:02:42]} 17. Nf3 {[%clk 0:02:00]}  Bh3 {[%clk 0:02:32]} 18. Nd4 {[%clk 0:01:56]}  Nxd4 {[%clk 0:02:31]} 19. Bxd4 {[%clk 0:01:52]}  Bxg2 {[%clk 0:02:26]} 20. Kxg2 {[%clk 0:01:52]}  Rc8 {[%clk 0:02:23]} 21. b4 {[%clk 0:01:48]}  Ng5 {[%clk 0:02:12]} 22. h4 {[%clk 0:01:47]}  Qh3+ {[%clk 0:02:09]} 23. Kg1 {[%clk 0:01:37]}  Ne4 {[%clk 0:02:00]} 24. Qd3 {[%clk 0:01:37]}  axb4 {[%clk 0:01:52]} 25. axb4 {[%clk 0:01:35]}  g5 {[%clk 0:01:30]} 26. Qf3 {[%clk 0:01:19]}  Nd2 {[%clk 0:01:10]} 27. Qg2 {[%clk 0:00:55]}  Qxg2+ {[%clk 0:01:07]} 28. Kxg2 {[%clk 0:00:55]}  Nxf1 {[%clk 0:01:07]} 29. Kxf1 {[%clk 0:00:55]}  gxh4 {[%clk 0:01:08]} 30. gxh4 {[%clk 0:00:49]}  Bxh4 {[%clk 0:01:08]} 31. b5 {[%clk 0:00:49]}  f5 {[%clk 0:00:58]} 32. c6 {[%clk 0:00:48]}  bxc6 {[%clk 0:00:56]} 33. bxc6 {[%clk 0:00:40]}  Kf7 {[%clk 0:00:54]} 34. c7 {[%clk 0:00:35]}  Bf6 {[%clk 0:00:27]} 35. Bxf6 {[%clk 0:00:15]}  Kxf6 {[%clk 0:00:28]} 36. Rc6+ {[%clk 0:00:15]}  Ke5 {[%clk 0:00:28]} 37. e3 {[%clk 0:00:15]}  d4 {[%clk 0:00:21]} 38. Rc5+ {[%clk 0:00:15]}  Kd6 {[%clk 0:00:09]} 39. exd4 {[%clk 0:00:14]}  Rxc7 {[%clk 0:00:09]} 40. Rxf5 {[%clk 0:00:10]}  Rc2 {[%clk 0:00:09]} 41. Kg2 {[%clk 0:00:07]}  Ke6 {[%clk 0:00:09]} 42. Rh5 {[%clk 0:00:06]}  Rd2 {[%clk 0:00:06]} 43. Rxh6+ {[%clk 0:00:06]}  Kf5 {[%clk 0:00:07]} 44. Rh4 {[%clk 0:00:06]}  Ra2 {[%clk 0:00:03]} 45. Kf3 {[%clk 0:00:06]}  Ra3+ {[%clk 0:00:03]} 46. Kg2 {[%clk 0:00:06]}  Rd3 {[%clk 0:00:03]} 47. f3 {[%clk 0:00:05]}  Rd2+ {[%clk 0:00:03]} 48. Kg3 {[%clk 0:00:05]}  Rd3 {[%clk 0:00:03]} 49. Rg4 {[%clk 0:00:05]}  Rd2 {[%clk 0:00:03]} 50. Re4 {[%clk 0:00:04]}  Rd3 {[%clk 0:00:03]} 51. Rf4+ {[%clk 0:00:04]}  Kg5 {[%clk 0:00:02]} 52. Rg4+ {[%clk 0:00:04]}  Kf5 {[%clk 0:00:03]} 53. Kf2 {[%clk 0:00:04]}  Ra3 {[%clk 0:00:01]} 54. Ke2 {[%clk 0:00:04]} 1-0


[Site "https://www.chess.com"]

[Event "Titled Tuesday Blitz July 26 Early 2022"]
[White "Gheorghiu, Calin"]
[Black "Williams, Simon K"]
[WhiteFideId "1200305"]
[BlackFideId "404454"]
[WhiteElo "2168"]
[BlackElo "2468"]
[Result "1-0"]
[Round "07"]
[TimeControl "180+1"]
[Date "2022.07.27"]
[WhiteClock "0:00:17"]
[BlackClock "0:00:05"]

1. b3 {[%clk 0:03:00]}  e5 {[%clk 0:02:55]} 2. Bb2 {[%clk 0:03:01]}  e4 {[%clk 0:02:55]} 3. g3 {[%clk 0:03:01]}  d5 {[%clk 0:02:55]} 4. Bg2 {[%clk 0:03:02]}  h5 {[%clk 0:02:55]} 5. h4 {[%clk 0:03:01]}  Nf6 {[%clk 0:02:55]} 6. e3 {[%clk 0:02:58]}  Bg4 {[%clk 0:02:54]} 7. Qc1 {[%clk 0:02:55]}  Nbd7 {[%clk 0:02:52]} 8. Nc3 {[%clk 0:02:55]}  c6 {[%clk 0:02:52]} 9. d3 {[%clk 0:02:55]}  Nc5 {[%clk 0:02:25]} 10. Qd2 {[%clk 0:02:36]}  Qb6 {[%clk 0:02:00]} 11. d4 {[%clk 0:02:27]}  Ne6 {[%clk 0:01:57]} 12. Nce2 {[%clk 0:02:25]}  a5 {[%clk 0:01:55]} 13. a3 {[%clk 0:02:23]}  a4 {[%clk 0:01:55]} 14. b4 {[%clk 0:02:23]}  Qc7 {[%clk 0:01:47]} 15. Nh3 {[%clk 0:02:22]}  b5 {[%clk 0:01:47]} 16. O-O {[%clk 0:02:18]}  Bd6 {[%clk 0:01:43]} 17. Nef4 {[%clk 0:02:18]}  Nxf4 {[%clk 0:01:40]} 18. exf4 {[%clk 0:02:16]}  O-O {[%clk 0:01:37]} 19. Ng5 {[%clk 0:02:16]}  Nd7 {[%clk 0:01:35]} 20. f3 {[%clk 0:02:15]}  exf3 {[%clk 0:01:33]} 21. Bxf3 {[%clk 0:02:15]}  Bxf3 {[%clk 0:01:30]} 22. Rxf3 {[%clk 0:02:12]}  Rae8 {[%clk 0:01:30]} 23. Re1 {[%clk 0:02:11]}  Nf6 {[%clk 0:01:26]} 24. Rfe3 {[%clk 0:02:07]}  Qd7 {[%clk 0:01:25]} 25. Qd3 {[%clk 0:01:47]}  g6 {[%clk 0:01:21]} 26. Re5 {[%clk 0:01:32]}  Ng4 {[%clk 0:01:08]} 27. Bc3 {[%clk 0:01:24]}  Kg7 {[%clk 0:01:05]} 28. Qe2 {[%clk 0:01:14]}  Nf6 {[%clk 0:01:02]} 29. Bb2 {[%clk 0:01:10]}  Qg4 {[%clk 0:00:55]} 30. Qxg4 {[%clk 0:00:52]}  hxg4 {[%clk 0:00:54]} 31. f5 {[%clk 0:00:42]}  Nh5 {[%clk 0:00:47]} 32. Rxe8 {[%clk 0:00:41]}  Rxe8 {[%clk 0:00:36]} 33. Rxe8 {[%clk 0:00:40]}  gxf5 {[%clk 0:00:37]} 34. Rd8 {[%clk 0:00:33]}  Bxg3 {[%clk 0:00:32]} 35. Rd7 {[%clk 0:00:33]}  Kg6 {[%clk 0:00:29]} 36. Nxf7 {[%clk 0:00:32]}  f4 {[%clk 0:00:27]} 37. Bc1 {[%clk 0:00:29]}  f3 {[%clk 0:00:27]} 38. Ne5+ {[%clk 0:00:27]}  Bxe5 {[%clk 0:00:20]} 39. dxe5 {[%clk 0:00:27]}  g3 {[%clk 0:00:20]} 40. e6 {[%clk 0:00:24]}  Nf6 {[%clk 0:00:19]} 41. Rf7 {[%clk 0:00:21]}  f2+ {[%clk 0:00:16]} 42. Kg2 {[%clk 0:00:20]}  Ne4 {[%clk 0:00:14]} 43. Be3 {[%clk 0:00:18]}  Nd6 {[%clk 0:00:06]} 44. h5+ {[%clk 0:00:18]}  Kxh5 {[%clk 0:00:06]} 45. e7 {[%clk 0:00:18]}  Kg6 {[%clk 0:00:05]} 46. Rf8 {[%clk 0:00:17]} 1-0


[Site "https://www.chess.com"]

[Event "Titled Tuesday Blitz July 26 Early 2022"]
[White "Gundam, Rohit"]
[Black "Krylov, Ivan"]
[WhiteFideId "75002809"]
[BlackFideId "24128066"]
[WhiteElo "2419"]
[BlackElo "2257"]
[Result "1-0"]
[Round "07"]
[TimeControl "180+1"]
[Date "2022.07.27"]
[WhiteClock "0:00:07"]
[BlackClock "0:00:07"]

1. d4 {[%clk 0:03:00]}  d5 {[%clk 0:02:58]} 2. Nf3 {[%clk 0:03:01]}  Nf6 {[%clk 0:02:57]} 3. c4 {[%clk 0:03:01]}  e6 {[%clk 0:02:57]} 4. Nc3 {[%clk 0:03:02]}  Be7 {[%clk 0:02:57]} 5. Bg5 {[%clk 0:03:02]}  O-O {[%clk 0:02:57]} 6. e3 {[%clk 0:03:02]}  b6 {[%clk 0:02:56]} 7. Rc1 {[%clk 0:03:03]}  Bb7 {[%clk 0:02:56]} 8. cxd5 {[%clk 0:03:03]}  Nxd5 {[%clk 0:02:56]} 9. Bxe7 {[%clk 0:03:04]}  Qxe7 {[%clk 0:02:55]} 10. Be2 {[%clk 0:03:04]}  c6 {[%clk 0:02:45]} 11. Ne5 {[%clk 0:02:47]}  Nd7 {[%clk 0:02:44]} 12. Nxd5 {[%clk 0:02:47]}  cxd5 {[%clk 0:02:41]} 13. Rc7 {[%clk 0:02:41]}  Bc8 {[%clk 0:02:41]} 14. O-O {[%clk 0:02:23]}  Qd6 {[%clk 0:02:38]} 15. Rc6 {[%clk 0:01:00]}  Qb4 {[%clk 0:02:35]} 16. Nd3 {[%clk 0:00:51]}  Qe7 {[%clk 0:02:30]} 17. Rc7 {[%clk 0:00:44]}  Qd6 {[%clk 0:02:29]} 18. Qc2 {[%clk 0:00:42]}  Nf6 {[%clk 0:02:24]} 19. Rc1 {[%clk 0:00:36]}  Bd7 {[%clk 0:02:15]} 20. Ne5 {[%clk 0:00:31]}  Rfd8 {[%clk 0:01:56]} 21. f3 {[%clk 0:00:31]}  Be8 {[%clk 0:01:50]} 22. Ba6 {[%clk 0:00:29]}  Nd7 {[%clk 0:01:34]} 23. Nc6 {[%clk 0:00:19]}  Qxc7 {[%clk 0:01:22]} 24. Ne7+ {[%clk 0:00:19]}  Kf8 {[%clk 0:01:20]} 25. Qxc7 {[%clk 0:00:16]}  Kxe7 {[%clk 0:01:19]} 26. Bb7 {[%clk 0:00:16]}  Rab8 {[%clk 0:01:17]} 27. g4 {[%clk 0:00:15]}  Kf8 {[%clk 0:01:11]} 28. Qd6+ {[%clk 0:00:14]}  Kg8 {[%clk 0:01:11]} 29. Qe7 {[%clk 0:00:13]}  Nf6 {[%clk 0:01:03]} 30. Rc7 {[%clk 0:00:13]}  Rd7 {[%clk 0:00:58]} 31. Rxd7 {[%clk 0:00:11]}  Bxd7 {[%clk 0:00:59]} 32. Ba6 {[%clk 0:00:07]}  h6 {[%clk 0:00:55]} 33. h4 {[%clk 0:00:07]}  Re8 {[%clk 0:00:51]} 34. Qd6 {[%clk 0:00:07]}  Bc8 {[%clk 0:00:39]} 35. Qc7 {[%clk 0:00:07]}  Bxa6 {[%clk 0:00:39]} 36. Qxa7 {[%clk 0:00:07]}  Be2 {[%clk 0:00:35]} 37. Kf2 {[%clk 0:00:06]}  Bd3 {[%clk 0:00:32]} 38. Qxb6 {[%clk 0:00:06]}  Rc8 {[%clk 0:00:25]} 39. a4 {[%clk 0:00:04]}  Rc2+ {[%clk 0:00:23]} 40. Kg3 {[%clk 0:00:05]}  Bf1 {[%clk 0:00:18]} 41. a5 {[%clk 0:00:05]}  Rg2+ {[%clk 0:00:17]} 42. Kf4 {[%clk 0:00:05]}  Kh7 {[%clk 0:00:15]} 43. a6 {[%clk 0:00:05]}  Bxa6 {[%clk 0:00:14]} 44. Qxa6 {[%clk 0:00:05]}  Rxb2 {[%clk 0:00:13]} 45. Qa7 {[%clk 0:00:06]}  h5 {[%clk 0:00:09]} 46. Qxf7 {[%clk 0:00:05]}  hxg4 {[%clk 0:00:09]} 47. fxg4 {[%clk 0:00:05]}  Rf2+ {[%clk 0:00:09]} 48. Ke5 {[%clk 0:00:05]}  Re2 {[%clk 0:00:09]} 49. Kxe6 {[%clk 0:00:03]}  Rxe3+ {[%clk 0:00:09]} 50. Kd6 {[%clk 0:00:04]}  Nxg4 {[%clk 0:00:07]} 51. Qh5+ {[%clk 0:00:03]}  Nh6 {[%clk 0:00:07]} 52. Qxd5 {[%clk 0:00:04]}  Rh3 {[%clk 0:00:07]} 53. Qe6 {[%clk 0:00:04]}  Rxh4 {[%clk 0:00:06]} 54. d5 {[%clk 0:00:04]}  Rh5 {[%clk 0:00:06]} 55. Qe4+ {[%clk 0:00:05]}  Nf5+ {[%clk 0:00:06]} 56. Ke6 {[%clk 0:00:05]}  g6 {[%clk 0:00:06]} 57. d6 {[%clk 0:00:05]}  Rh4 {[%clk 0:00:06]} 58. Qxh4+ {[%clk 0:00:04]}  Nxh4 {[%clk 0:00:06]} 59. d7 {[%clk 0:00:05]}  g5 {[%clk 0:00:06]} 60. d8=Q {[%clk 0:00:06]}  g4 {[%clk 0:00:06]} 61. Qxh4+ {[%clk 0:00:06]}  Kg6 {[%clk 0:00:07]} 62. Qxg4+ {[%clk 0:00:07]} 1-0


[Site "https://www.chess.com"]

[Event "Titled Tuesday Blitz July 26 Early 2022"]
[White "Gunina, Valentina"]
[Black "Korchmar, Vasiliy"]
[WhiteFideId "4167570"]
[BlackFideId "24131750"]
[WhiteElo "2386"]
[BlackElo "2370"]
[Result "1-0"]
[Round "07"]
[TimeControl "180+1"]
[Date "2022.07.26"]
[WhiteClock "0:02:21"]
[BlackClock "0:00:20"]

1. d4 {[%clk 0:03:00]}  d5 {[%clk 0:02:59]} 2. c4 {[%clk 0:03:01]}  c6 {[%clk 0:03:00]} 3. Nf3 {[%clk 0:03:01]}  Nf6 {[%clk 0:03:00]} 4. Nc3 {[%clk 0:03:01]}  e6 {[%clk 0:03:00]} 5. e3 {[%clk 0:03:01]}  Nbd7 {[%clk 0:03:00]} 6. Be2 {[%clk 0:03:01]}  dxc4 {[%clk 0:02:59]} 7. Bxc4 {[%clk 0:03:01]}  b5 {[%clk 0:02:59]} 8. Bd3 {[%clk 0:03:02]}  b4 {[%clk 0:02:59]} 9. Ne4 {[%clk 0:03:02]}  Nxe4 {[%clk 0:03:00]} 10. Bxe4 {[%clk 0:03:02]}  Bb7 {[%clk 0:03:00]} 11. O-O {[%clk 0:03:02]}  Be7 {[%clk 0:03:01]} 12. Bd2 {[%clk 0:02:59]}  O-O {[%clk 0:02:59]} 13. Rc1 {[%clk 0:02:59]}  Qb6 {[%clk 0:02:50]} 14. Qc2 {[%clk 0:02:44]}  f5 {[%clk 0:02:39]} 15. Bd3 {[%clk 0:02:43]}  c5 {[%clk 0:02:35]} 16. Be2 {[%clk 0:02:43]}  Rac8 {[%clk 0:02:25]} 17. Qb3 {[%clk 0:02:42]}  Bd5 {[%clk 0:02:18]} 18. Bc4 {[%clk 0:02:42]}  Bxc4 {[%clk 0:01:48]} 19. Rxc4 {[%clk 0:02:41]}  cxd4 {[%clk 0:01:42]} 20. Nxd4 {[%clk 0:02:40]}  Nc5 {[%clk 0:01:02]} 21. Qxb4 {[%clk 0:02:40]}  Ne4 {[%clk 0:00:59]} 22. Qxe7 {[%clk 0:02:29]}  Nxd2 {[%clk 0:00:25]} 23. Nxe6 {[%clk 0:02:22]}  Qxb2 {[%clk 0:00:25]} 24. Rd4 {[%clk 0:02:22]}  Nxf1 {[%clk 0:00:20]} 25. Qxg7# {[%clk 0:02:21]} 1-0


[Site "https://www.chess.com"]

[Event "Titled Tuesday Blitz July 26 Early 2022"]
[White "Hercegovac, Neven"]
[Black "Devaev, Alexander"]
[WhiteFideId "2839135"]
[BlackFideId "4169395"]
[WhiteElo "1972"]
[BlackElo "2185"]
[Result "0-1"]
[Round "07"]
[TimeControl "180+1"]
[Date "2022.07.27"]
[WhiteClock "0:00:02"]
[BlackClock "0:00:04"]

1. d4 {[%clk 0:03:00]}  Nf6 {[%clk 0:02:59]} 2. c4 {[%clk 0:03:01]}  e6 {[%clk 0:02:59]} 3. Nf3 {[%clk 0:03:00]}  c5 {[%clk 0:02:56]} 4. d5 {[%clk 0:02:56]}  exd5 {[%clk 0:02:57]} 5. cxd5 {[%clk 0:02:57]}  d6 {[%clk 0:02:57]} 6. Nc3 {[%clk 0:02:51]}  g6 {[%clk 0:02:58]} 7. e4 {[%clk 0:02:48]}  Bg7 {[%clk 0:02:58]} 8. h3 {[%clk 0:02:46]}  O-O {[%clk 0:02:59]} 9. Bd3 {[%clk 0:02:43]}  a6 {[%clk 0:02:56]} 10. a4 {[%clk 0:02:41]}  Nbd7 {[%clk 0:02:57]} 11. O-O {[%clk 0:02:38]}  Qe7 {[%clk 0:02:57]} 12. Bf4 {[%clk 0:02:34]}  Nh5 {[%clk 0:02:47]} 13. Bh2 {[%clk 0:02:31]}  Ne5 {[%clk 0:02:43]} 14. Be2 {[%clk 0:02:26]}  Nxf3+ {[%clk 0:02:36]} 15. Bxf3 {[%clk 0:02:27]}  Nf6 {[%clk 0:02:36]} 16. e5 {[%clk 0:02:23]}  dxe5 {[%clk 0:02:36]} 17. d6 {[%clk 0:02:20]}  Qd8 {[%clk 0:02:36]} 18. Bxe5 {[%clk 0:02:17]}  Re8 {[%clk 0:02:30]} 19. Re1 {[%clk 0:02:06]}  Ra7 {[%clk 0:01:40]} 20. a5 {[%clk 0:01:42]}  Bd7 {[%clk 0:01:23]} 21. Qd2 {[%clk 0:01:18]}  Bc6 {[%clk 0:00:25]} 22. Bxc6 {[%clk 0:01:16]}  bxc6 {[%clk 0:00:26]} 23. Na4 {[%clk 0:01:08]}  Nd5 {[%clk 0:00:20]} 24. Bxg7 {[%clk 0:01:07]}  Rxe1+ {[%clk 0:00:18]} 25. Rxe1 {[%clk 0:01:07]}  Kxg7 {[%clk 0:00:18]} 26. Nxc5 {[%clk 0:01:02]}  Qxd6 {[%clk 0:00:19]} 27. Ne4 {[%clk 0:00:42]}  Qb4 {[%clk 0:00:12]} 28. Qxb4 {[%clk 0:00:24]}  Nxb4 {[%clk 0:00:12]} 29. Nc5 {[%clk 0:00:21]}  Kf6 {[%clk 0:00:10]} 30. f4 {[%clk 0:00:18]}  h5 {[%clk 0:00:09]} 31. g3 {[%clk 0:00:18]}  Ra8 {[%clk 0:00:07]} 32. Kf2 {[%clk 0:00:14]}  Rd8 {[%clk 0:00:07]} 33. Re2 {[%clk 0:00:14]}  Rd5 {[%clk 0:00:07]} 34. Ne4+ {[%clk 0:00:08]}  Kg7 {[%clk 0:00:07]} 35. Ng5 {[%clk 0:00:07]}  Rxa5 {[%clk 0:00:05]} 36. Re7 {[%clk 0:00:07]}  Rf5 {[%clk 0:00:06]} 37. Kf3 {[%clk 0:00:06]}  a5 {[%clk 0:00:04]} 38. g4 {[%clk 0:00:06]}  hxg4+ {[%clk 0:00:04]} 39. hxg4 {[%clk 0:00:07]}  Rxf4+ {[%clk 0:00:05]} 40. Kxf4 {[%clk 0:00:07]}  Nd5+ {[%clk 0:00:06]} 41. Ke5 {[%clk 0:00:06]}  Nxe7 {[%clk 0:00:07]} 42. Kd6 {[%clk 0:00:06]}  f5 {[%clk 0:00:04]} 43. Kxe7 {[%clk 0:00:06]}  fxg4 {[%clk 0:00:04]} 44. Ne4 {[%clk 0:00:05]}  g5 {[%clk 0:00:03]} 45. Nxg5 {[%clk 0:00:04]}  Kg6 {[%clk 0:00:04]} 46. Ne4 {[%clk 0:00:04]}  Kf5 {[%clk 0:00:05]} 47. Ng3+ {[%clk 0:00:02]}  Kf4 {[%clk 0:00:05]} 48. Nh5+ {[%clk 0:00:02]}  Ke3 {[%clk 0:00:04]} 0-1


[Site "https://www.chess.com"]